Workbook

Sheet dane
Q1: 0 | R1: a | S1: szyny | T1: b | U1: Kolumna1 | V1: c | W1: Kolumna1 | X1: d | Y1: cena | Z1: e | AA1: cena | AB1: f | AC1: cena | AD1: g | AE1: Kolumna1 | AF1: h | AG1: cena | AH1: i | AI1: cena | AJ1: j | AK1: cena | AL1: k | AM1: Kolumna1 | AN1: l | AO1: Kolumna1 | AP1: m | AQ1: cena | AR1: n | AS1: cena | AT1: o | AU1: cena | AV1: p | AW1: cena | AX1: r | AY1: cena | AZ1: s | BA1: cena | BB1: t | BC1: cena | BD1: u | BE1: cena | BF1: w | BG1: x | BH1: cena | BI1: y | BJ1: cena | BK1: z | BL1: cena | BM1: aa | BN1: cena | BO1: bb | BP1: cena | BQ1: cc | BR1: cena | BS1: dd | BT1: cena | BU1: ee | BV1: cena | BW1: ff | BX1: cena | BY1: gg | BZ1: cena | CA1: hh | CB1: cena | CC1: ii | CD1: cena | CE1: jj | CF1: cena | CG1: kk | CH1: cena2 | CI1: ll | CJ1: cena | CK1: mm | CL1: cena2 | CM1: nn | CN1: cena | CO1: oo | CP1: cena | CQ1: pp | CS1: rr | CU1: ss | CV1: cena | CW1: tt | CX1: cena | CY1: uu | CZ1: cena | DA1: ww | DB1: cena
G2: Opis listy | H2: Cena | Q2: 1 | R2: a1 | S2: 1 | T2: b1 | V2: c1 | X2: d1 | Y2: 750 | Z2: e1 | AA2: 1600 | AB2: f1 | AC2: 110 | AD2: g1 | AF2: h1 | AG2: 5000 | AH2: i1 | AI2: 0 | AJ2: j1 | AK2: 630 | AL2: k1 | AN2: l1 | AP2: m1 | AQ2: 120 | AR2: n1 | AS2: 560 | AT2: o2 | AU2: 4320 | AV2: p1 | AW2: 180 | AX2: r1 | AY2: 7912 | AZ2: s1 | BA2: 5512 | BB2: t1 | BC2: 960 | BD2: u1 | BE2: 2400 | BF2: 1 | BG2: x1 | BH2: 1500 | BI2: y1 | BJ2: 1200 | BK2: z1 | BL2: 30 | BM2: aa1 | BN2: 1900 | BO2: bb1 | BP2: 1420 | BQ2: cc1 | BR2: 30 | BS2: dd1 | BU2: ee1 | BV2: 19500 | BW2: ff1 | BX2: 1000 | BY2: gg1 | BZ2: 4000 | CA2: hh1 | CB2: 65 | CC2: ii1 | CD2: 99 | CE2: jj1 | CF2: 3 | CG2: kk1 | CH2: 66 | CI2: ll1 | CJ2: 650 | CK2: mm1 | CL2: 2 | CM2: nn1 | CN2: 1 | CO2: oo1 | CP2: 100 | CU2: ss1 | CV2: 15200 | CW2: tt1 | CX2: 13600 | CY2: uu1 | CZ2: 31200 | DA2: ww1 | DB2: 450
Q3: 2 | R3: a2 | S3: 2 | T3: b2 | V3: c2 | X3: d2 | Y3: 950 | Z3: e2 | AA3: 2000 | AB3: f2 | AC3: 100 | AD3: g2 | AF3: h2 | AG3: 4500 | AJ3: j2 | AK3: 796 | AL3: k2 | AN3: l2 | AP3: m2 | AQ3: 60 | AR3: n2 | AS3: 560 | AT3: o2 | AU3: 3800 | AV3: p2 | AW3: 195 | AX3: r2 | AY3: 9752 | AZ3: s2 | BA3: 3680 | BB3: t2 | BC3: 96 | BD3: u2 | BE3: 472 | BF3: 2 | BG3: x2 | BH3: 1900 | BI3: y2 | BJ3: 1420 | BK3: z2 | BL3: 100 | BM3: aa2 | BN3: 600 | BP3: 0 | BQ3: cc2 | BR3: 150 | BS3: dd2 | BU3: ee2 | BV3: 20500 | BW3: ff2 | BX3: 1500 | BY3: gg2 | BZ3: 2400 | CA3: hh2 | CB3: 7 | CC3: ii2 | CD3: 999 | CE3: jj2 | CF3: 5 | CG3: kk2 | CH3: 88 | CI3: ll2 | CJ3: 1375 | CK3: mm2 | CL3: 4 | CN3: 0 | CO3: oo2 | CP3: 500 | CU3: ss2 | CV3: 17600 | CW3: tt2 | CX3: 15200 | CZ3: 0 | DA3: ww2 | DB3: 130
A4: 1 | B4: 1 | G4: pozycja1 | Q4: 3 | R4: a3 | S4: 3 | T4: b3 | V4: c3 | X4: d2 | Y4: 1130 | Z4: e3 | AA4: 2375 | AB4: f3 | AC4: 75 | AD4: g3 | AG4: 0 | AJ4: j3 | AK4: 1100 | AQ4: 0 | AR4: n3 | AS4: 430 | AU4: 0 | AV4: p3 | AW4: 354 | AX4: r3 | AY4: 6792 | AZ4: s3 | BA4: 3992 | BB4: t3 | BC4: 784 | BD4: u3 | BE4: 1950 | BF4: 3 | BG4: x3 | BH4: 1800 | BI4: y3 | BJ4: 1520 | BL4: 0 | BR4: 0 | BS4: dd3 | BU4: ee3 | BV4: 15500 | BW4: ff3 | BX4: 2000 | BY4: gg3 | BZ4: 2 | CC4: ii3 | CD4: 9999 | CE4: jj3 | CF4: 3 | CG4: kk3 | CH4: 99 | CI4: ll3 | CJ4: 8 | CK4: mm3 | CL4: 6 | CW4: tt3 | CX4: 21600 | DA4: ww3 | DB4: 62.8
A5: 2 | C5: 1 | G5: d1 | Q5: 4 | R5: a4 | S5: 4 | V5: c4 | X5: d4 | Y5: 244 | Z5: e3 | AA5: 4567 | AD5: g4 | AJ5: j4 | AK5: 1100 | AS5: 0 | AV5: p4 | AW5: 152 | AY5: 0 | AZ5: s4 | BA5: 3000 | BC5: 0 | BE5: 0 | BF5: 4 | BU5: ee4 | BV5: 16000 | CE5: jj4 | CF5: 2 | CG5: kk4 | CH5: 22 | CI5: ll4 | CJ5: 9 | CK5: mm4 | CL5: 7 | CW5: tt4 | CX5: 27200
A6: 3 | C6: 2 | G6: d2 | Q6: 5 | R6: a5 | S6: 5 | X6: d5 | Y6: 300 | Z6: e4 | AA6: 2340 | AD6: g5 | AK6: 0 | AW6: 0 | BA6: 0 | BF6: 5 | BU6: ee5 | BV6: 28000 | CI6: ll5 | CJ6: 0 | CL6: 0 | CW6: tt5 | CX6: 18480
A7: 4 | C7: 3 | G7: d3 | Q7: 6 | R7: a6 | S7: 6 | Y7: 0 | Z7: e5 | AA7: 5000 | BF7: 6 | CW7: tt6 | CX7: 19600
A8: 5 | C8: 4 | G8: d4 | Q8: 7 | R8: a7 | S8: 7 | AA8: 0 | BF8: 7
A9: 6 | C9: 5 | G9: d5 | Q9: 8 | R9: a8 | S9: 8 | BF9: 8
A10: 7 | B10: 2 | G10: pozycja2 | Q10: 9 | BF10: 9
A11: 8 | C11: 1 | G11: e1 | Q11: 10
A12: 9 | C12: 2 | G12: e2 | Q12: 11
A13: 11 | C13: 3 | G13: e3 | Q13: 12
A14: 12 | C14: 4 | G14: e4 | Q14: 13
A15: 13 | C15: 5 | G15: e5 | Q15: 14 | BF15: 42 | BG15: 43 | BH15: 44 | BI15: 45 | BJ15: 46 | BK15: 47 | BL15: 48 | BM15: 49 | BN15: 50 | BO15: 51 | BP15: 52 | BQ15: 53 | BR15: 54 | BS15: 55 | BT15: 56 | BU15: 57 | BV15: 58 | BW15: 59 | BX15: 60 | BY15: 61 | BZ15: 62 | CA15: 63 | CB15: 64 | CC15: 65 | CD15: 66 | CE15: 67 | CF15: 68 | CG15: 69 | CH15: 70 | CI15: 71 | CJ15: 72 | CK15: 73 | CL15: 74 | CM15: 75 | CN15: 76 | CO15: 77 | CP15: 78 | CQ15: 79 | CR15: 80 | CS15: 81 | CT15: 82 | CU15: 83 | CV15: 84 | CW15: 85 | CX15: 86 | CY15: 87 | CZ15: 88 | DA15: 89 | DB15: 90
A16: 14 | B16: 3 | G16: pozycja3 | Q16: 15
A17: 15 | C17: 1 | G17: f1 | H17: 110.00 zł | Q17: 16
A18: 16 | C18: 2 | G18: f2 | H18: 100.00 zł | Q18: 17
A19: 17 | C19: 3 | G19: f3 | H19: 90.00 zł | Q19: 18
A20: 18 | B20: 4 | G20: pozycja4 | Q20: 19
A21: 19 | C21: 1 | G21: g | Q21: 20
A22: 20 | D22: 1 | G22: g1 | Q22: 21
A23: 21 | E23: 1 | G23: dd1 | Q23: 22
A24: 22 | F24: 1 | G24: ss1 | H24: 15,200.00 zł | Q24: 23
A25: 23 | F25: 2 | G25: ss2 | H25: 17,600.00 zł | Q25: 24
A26: 24 | E26: 2 | G26: dd2 | Q26: 25
A27: 25 | F27: 1 | G27: tt1 | H27: 13,600.00 zł | Q27: 26
A28: 26 | F28: 2 | G28: tt2 | H28: 15,200.00 zł | Q28: 27
A29: 27 | F29: 3 | G29: tt3 | H29: 21,600.00 zł | Q29: 28
A30: 28 | F30: 4 | G30: tt4 | H30: 27,200.00 zł | Q30: 29
A31: 29 | F31: 5 | G31: tt5 | H31: 18,480.00 zł | Q31: 30
A32: 30 | F32: 6 | G32: tt6 | H32: 19,600.00 zł | Q32: 31
A33: 31 | E33: 3 | G33: dd3 | Q33: 32
A34: 32 | F34: 1 | G34: uu1 | H34: 31,200.00 zł | Q34: 33
A35: 33 | D35: 2 | G35: g2 | Q35: 34
A36: 34 | E36: 1 | G36: ee1 | H36: 19,500.00 zł | Q36: 35
A37: 35 | E37: 2 | G37: ee2 | H37: 20,500.00 zł | Q37: 36
A38: 36 | E38: 3 | G38: ee3 | H38: 15,500.00 zł | Q38: 37
A39: 37 | E39: 4 | G39: ee4 | H39: 16,000.00 zł | Q39: 38
A40: 38 | E40: 5 | G40: ee5 | H40: 28,000.00 zł | Q40: 39
A41: 39 | D41: 3 | G41: g3 | Q41: 40
A42: 40 | E42: 1 | G42: ff1 | H42: 1,000.00 zł | Q42: 41
A43: 41 | E43: 2 | G43: ff2 | H43: 1,500.00 zł | Q43: 42
A44: 42 | E44: 3 | G44: ff3 | H44: 2,000.00 zł | Q44: 43
A45: 43 | D45: 4 | G45: g4 | Q45: 44
A46: 44 | E46: 1 | G46: ll | Q46: 45
A47: 45 | F47: 1 | G47: ll1 | Q47: 46
A48: 46 | F48: 2 | G48: ll2 | Q48: 47
A49: 47 | F49: 3 | G49: ll3 | Q49: 48
A50: 48 | F50: 4 | G50: ll4 | Q50: 49
A51: 49 | F51: 5 | G51: ll5 | Q51: 50
A52: 50 | E52: 2 | G52: gg
A53: 51 | F53: 1 | G53: gg1
A54: 52 | F54: 2 | G54: gg2
A55: 53 | F55: 3 | G55: gg3
A56: 54 | D56: 5 | G56: u
A57: 55 | E57: 1 | G57: u1 | H57: 2,400.00 zł | EF57: 120
A58: 56 | E58: 2 | G58: u2 | H58: 472.00 zł
A59: 57 | C59: 2 | G59: h
A60: 58 | D60: 1 | G60: h1 | H60: 5,000.00 zł | EF60: 136
A61: 59 | D61: 2 | G61: h2 | H61: 4,500.00 zł
A62: 60 | C62: 3 | G62: j
A63: 61 | D63: 1 | G63: j1 | H63: 670.00 zł
A64: 62 | D64: 2 | G64: j2 | H64: 700.00 zł
A65: 63 | D65: 3 | G65: j3 | H65: 750.00 zł
A66: 64 | D66: 4 | G66: j4 | H66: 1,100.00 zł
A67: 65 | B67: 5 | G67: pozycja5
A68: 66 | C68: 1 | G68: k
A69: 67 | D69: 1 | G69: k1
A70: 68 | E70: 1 | G70: x1 | H70: 1,500.00 zł
A71: 69 | E71: 2 | G71: x2 | H71: 1,900.00 zł
A72: 70 | E72: 3 | G72: x3 | H72: 1,900.00 zł
A73: 71 | D73: 2 | G73: k2
A74: 72 | E74: 1 | G74: y1 | H74: =H70*0.8 -> 1,200.00 zł
A75: 73 | E75: 2 | G75: y2 | H75: =H71*0.8 -> 1,520.00 zł
A76: 74 | E76: 3 | G76: y3 | H76: 1,520.00 zł
A77: 75 | D77: 3 | G77: k3
A78: 76 | E78: 1 | G78: z1 | H78: 30.00 zł
A79: 77 | E79: 2 | G79: z2 | H79: 100.00 zł
A80: 78 | C80: 2 | G80: l
A81: 79 | D81: 1 | G81: l1
A82: 80 | E82: 1 | G82: aa1 | H82: 1,900.00 zł
A83: 81 | E83: 2 | G83: aa2 | H83: 600.00 zł
A84: 82 | D84: 2 | G84: l2
A85: 83 | E85: 1 | G85: bb1 | H85: 1,800.00 zł
A86: 84 | D86: 3 | G86: l3
A87: 85 | E87: 1 | G87: cc1 | H87: 30.00 zł
A88: 86 | E88: 2 | G88: cc2 | H88: 150.00 zł
A89: 87 | C89: 3 | G89: m
A90: 88 | D90: 1 | G90: m1 | H90: 120.00 zł
A91: 89 | D91: 2 | G91: m2 | H91: 60.00 zł
A92: 90 | C92: 4 | G92: n
A93: 91 | D93: 1 | G93: n1 | H93: 560.00 zł
A94: 92 | D94: 2 | G94: n2 | H94: 560.00 zł
A95: 93 | D95: 3 | G95: n3 | H95: 500.00 zł
A96: 94 | C96: 5 | G96: o
A97: 95 | D97: 1 | G97: o1 | H97: 4,500.00 zł
A98: 96 | D98: 2 | G98: o2 | H98: 3,800.00 zł
A99: 97 | C99: 6 | G99: p
A100: 98 | D100: 1 | G100: p1 | H100: 180.00 zł
A101: 99 | D101: 2 | G101: p2 | H101: 270.00 zł
A102: 100 | D102: 3 | G102: p3 | H102: 400.00 zł
A103: 101 | D103: 4 | G103: p4 | H103: 160.00 zł
A104: 102 | C104: 7 | G104: inne
A105: 103 | D105: 1 | G105: uzupełnienie | H105: 2,900.00 zł
I106: =IF(B105=1,"t",0) -> 0

Sheet wprowadzenie
B1: jj | H1: 3
B2: ll | H2: 1
B3: nn | H3: 1
B4: oo | H4: 2

Sheet LZ
B1: a | D1: 1. formularz ma wyglądać tak jak jest przedstaiony i tak samo dzialać, tylko chcę, żeby makro pobierało dane z tabeli "tabelka" w arkuszu "dane" a nie z tego arkusza "LZ" | L1: 1 | BG1: x | BH1: cena | BI1: y | BJ1: cena | BM1: aa | BN1: cena | BO1: bb | BP1: cena | BS1: dd | BT1: cena | BU1: ee | BV1: cena | BW1: ff | BX1: cena | BY1: gg | BZ1: cena | CU1: ss | CV1: cena | CW1: tt | CX1: cena | CY1: uu | CZ1: cena
B2: b | D2: 2. ponadto jakby się udało wszystkie informacje pobierać do formularza w postaci listy przedstawionej w arkuszu "dane", a nie z tabeli "tabelka", w taki sposób, aby móc powiększyć lub pomniejszyć tę listę w każdej chwili | L2: 1 | BG2: x1 | BH2: 1500 | BI2: y1 | BJ2: 1200 | BM2: aa1 | BN2: 1900 | BO2: bb1 | BP2: 1420 | BS2: dd1 | BU2: ee1 | BV2: 19500 | BW2: ff1 | BX2: 1000 | BY2: gg1 | BZ2: 4000 | CU2: ss1 | CV2: 15200 | CW2: tt1 | CX2: 13600 | CY2: uu1 | CZ2: 31200
B3: c | L3: 1 | BG3: x2 | BH3: 1900 | BI3: y2 | BJ3: 1420 | BM3: aa2 | BN3: 600 | BP3: 0 | BS3: dd2 | BU3: ee2 | BV3: 20500 | BW3: ff2 | BX3: 1500 | BY3: gg2 | BZ3: 2400 | CU3: ss2 | CV3: 17600 | CW3: tt2 | CX3: 15200 | CZ3: 0
BG4: x3 | BH4: 1800 | BI4: y3 | BJ4: 1520 | BS4: dd3 | BU4: ee3 | BV4: 15500 | BW4: ff3 | BX4: 2000 | BY4: gg3 | BZ4: 2 | CW4: tt3 | CX4: 21600
A5: Rodzaj pola: 1 | BU5: ee4 | BV5: 16000 | CW5: tt4 | CX5: 27200
A6: lp. | B6: Opis | F6: Ilość | G6: Cena za sztukę | H6: Wartość | J6: Wartość S | BU6: ee5 | BV6: 28000 | CW6: tt5 | CX6: 18480
CW7: tt6 | CX7: 19600
A8: 1 | B8: pozycja1 | G8: =VLOOKUP(L8,tabelka,9,0) -> 750 | H8: =VLOOKUP(O8,tabelka,42,0)*G8 -> 750.00 zł | J8: S1 | K8: =H8 -> 750.00 zł | L8: 1 | O8: 1
A9: 2 | B9: pozycja2 | G9: =VLOOKUP(L9,tabelka,11,0) -> 1600 | H9: =VLOOKUP(O9,tabelka,42,0)*G9 -> 1,600.00 zł | J9: S2 | K9: =H9 -> 1,600.00 zł | L9: 1 | O9: 1
A10: 3 | B10: pozycja3 | G10: =IF(L10=TRUE,dane!AC2,0) -> 110 | H10: =VLOOKUP(O10,tabelka,42,0)*G10 -> 110.00 zł | J10: S3 | K10: =SUM(H10:H32) -> 14,716.00 zł | L10: TRUE | O10: 1
G11: =IF(L11=TRUE,dane!AC3,0) -> 100 | H11: =VLOOKUP(O11,tabelka,42,0)*G11 -> 100.00 zł | J11: S4 | K11: =SUM(H34:H37) -> 16,616.00 zł | L11: TRUE | O11: 1
G12: =IF(L12=TRUE,dane!AC4,0) -> 0 | H12: =VLOOKUP(O12,tabelka,42,0)*G12 -> 0.00 zł | J12: S5 | K12: =SUM(H39:H41) -> 1,041.00 zł | L12: FALSE | O12: 1
A13: 4 | B13: pozycja4 | J13: S6 | K13: =SUM(H43) -> 450.00 zł
A14: 4.1 | B14: g | G14: =IF(L14=5,0,VLOOKUP(M14,tabelka,54+2*L14,0) +IF( N14=0,0,VLOOKUP(N14,tabelka,82+2*M14,0))) -> 0 | H14: =VLOOKUP(O14,tabelka,42,0)*G14 -> 0.00 zł | J14: S7 | K14: =SUM(H45) -> 500.00 zł | L14: 1 | M14: 2 | N14: 0 | O14: 1
B15: dodatkowe wyposażenie (nie uzupelnione) | F15: =IF(L15=TRUE,1,0) -> 1 | G15: 0 | H15: =G15*F15 -> 0.00 zł | J15: SUMA | K15: =SUM(K8:K14) -> 35,673.00 zł | L15: TRUE | BG15: 43 | BH15: 44 | BI15: 45 | BJ15: 46 | BM15: 49 | BN15: 50 | BO15: 51 | BP15: 52 | BS15: 55 | BT15: 56 | BU15: 57 | BV15: 58 | BW15: 59 | BX15: 60 | BY15: 61 | BZ15: 62 | CU15: 83 | CV15: 84 | CW15: 85 | CX15: 86 | CY15: 87 | CZ15: 88
A16: 4.2 | B16: h | G16: =VLOOKUP(L16,tabelka,17,0) -> 5000 | H16: =VLOOKUP(O16,tabelka,42,0)*G16 -> 5,000.00 zł | L16: 1 | O16: 1
A17: 4.3 | B17: i | G17: =VLOOKUP(L17,tabelka,19,0) -> 0 | H17: =VLOOKUP(O17,tabelka,42,0)*G17 -> 0.00 zł | L17: 1 | O17: 1
A18: 4.4 | B18: j | G18: =VLOOKUP(L18,tabelka,21,0) -> 796 | H18: =VLOOKUP(O18,tabelka,42,0)*G18 -> 796.00 zł | L18: 2 | O18: 1
A19: 4.5 | F19: =IF(L19=TRUE,1,0) -> 0 | G19: 35 | H19: =F19*G19 -> 0.00 zł | L19: FALSE
F20: =IF(L20=TRUE,1,0) -> 0 | G20: 25 | H20: =F20*G20 -> 0.00 zł | L20: FALSE
A21: 5 | B21: pozycja5
A22: 5.1 | B22: k | G22: =IFERROR(VLOOKUP(M22,tabelka,42+2*L22,0)+VLOOKUP(N22,tabelka,48,0),0) -> 1600 | H22: =VLOOKUP(O22,tabelka,42,0)*G22 -> 1,600.00 zł | L22: 1 | M22: 1 | N22: 2 | O22: 1
A23: 5.2 | B23: l | G23: =IFERROR(VLOOKUP(M23,tabelka,48+2*L23,0)+VLOOKUP(N23,tabelka,54,0),0) -> 1930 | H23: 1,930.00 zł | L23: 1 | M23: 1 | N23: 1 | O23: 1
A24: 5.4 | B24: m | G24: =VLOOKUP(L24,tabelka,27,0) -> 120 | H24: 120.00 zł | L24: 1 | O24: 1
A25: 5.5 | B25: n | C25: IO [ENERGOTEST] | G25: =VLOOKUP(L25,tabelka,29,0) -> 560 | H25: 560.00 zł | L25: 1 | O25: 1
A26: 5.6 | B26: o | G26: =VLOOKUP(L26,tabelka,31,0) -> 4320 | H26: 4,320.00 zł | L26: 1 | O26: 1
A27: 5.7 | B27: p | G27: =VLOOKUP(L27,tabelka,33,0) -> 180 | H27: 180.00 zł | L27: 1 | O27: 1
A28: 5.8 | B28: Inne | C28: dodatek 1 | F28: 0 | H28: =F28*G28 -> 0.00 zł
C29: dodatek2 | F29: 0 | G29: 2830 | H29: =F29*G29 -> 0.00 zł
F30: 0 | H30: =F30*G30 -> 0.00 zł
F31: 0 | H31: 0.00 zł
F32: 0 | H32: 0.00 zł
A33: 6 | B33: pozycja6
A34: 6.1 | B34: r | G34: =VLOOKUP(L34,tabelka,35,0) -> 9752 | H34: =VLOOKUP(O34,tabelka,42,0)*G34 -> 9,752.00 zł | L34: 2 | O34: 1
A35: 6.2 | B35: s | G35: =VLOOKUP(L35,tabelka,37,0) -> 3680 | H35: =VLOOKUP(O35,tabelka,42,0)*G35 -> 3,680.00 zł | L35: 2 | O35: 1
A36: 6.3 | B36: t | G36: =VLOOKUP(L36,tabelka,39,0) -> 784 | H36: =VLOOKUP(O36,tabelka,42,0)*G36 -> 784.00 zł | L36: 3 | O36: 1
A37: 7 | B37: u | G37: =VLOOKUP(L37,tabelka,41,0) -> 2400 | H37: =VLOOKUP(O37,tabelka,42,0)*G37 -> 2,400.00 zł | L37: 1 | O37: 1
A38: 8
A39: 8.1 | B39: zależne od pola ll | F39: 1 | G39: =VLOOKUP(wprowadzenie!H2,tabelka,72,0) -> 650 | H39: =G39*F39 -> 650.00 zł
A40: 8.2 | B40: Szyny | F40: 1 | G40: =VLOOKUP(L2,tabelka,3,0) -> 1 | H40: =G40*F40 -> 1.00 zł
A41: 8.3 | B41: hh | F41: 6 | G41: =VLOOKUP(L41,tabelka,64,0) -> 65 | H41: =G41*F41 -> 390.00 zł | L41: 1
A42: 9 | B42: ww
B43: dodatkowe ww | F43: 1 | G43: =IF(L43=TRUE,VLOOKUP(1,tabelka,90,0),0) +SUM(blokada) -> 450 | H43: =G43*F43 -> 450.00 zł | L43: TRUE
A44: 10 | B44: oo
B45: zależne od pola oo | F45: 1 | G45: =VLOOKUP(wprowadzenie!H4,tabelka,78,0) -> 500 | H45: =G45*F45 -> 500.00 zł
G46: Łącznie: | H46: =SUM(H8:H45) -> 35,673.00 zł
